[Event "Titled Tuesday Blitz June 21 Early 2022"]
[White "Tan, Zhongyi"]
[Black "Parkhov, Yair"]
[WhiteFideId "8603642"]
[BlackFideId "2813408"]
[WhiteElo "2748"]
[BlackElo "2567"]
[Result "1/2-1/2"]
[Round "06"]
[TimeControl "180+1"]
[Date "2022.06.21"]
[WhiteClock "0:00:10"]
[BlackClock "0:00:21"]

1. e4 {[%clk 0:03:00]}  e5 {[%clk 0:02:55]} 2. Nf3 {[%clk 0:03:00]}  Nc6 {[%clk 0:02:54]} 3. Bb5 {[%clk 0:02:59]}  Nf6 {[%clk 0:02:54]} 4. O-O {[%clk 0:02:59]}  Nxe4 {[%clk 0:02:53]} 5. Re1 {[%clk 0:02:59]}  Nd6 {[%clk 0:02:53]} 6. Nxe5 {[%clk 0:02:58]}  Be7 {[%clk 0:02:52]} 7. Bf1 {[%clk 0:02:57]}  O-O {[%clk 0:02:52]} 8. d4 {[%clk 0:02:56]}  Nf5 {[%clk 0:02:51]} 9. d5 {[%clk 0:02:54]}  Nxe5 {[%clk 0:02:43]} 10. Rxe5 {[%clk 0:02:55]}  d6 {[%clk 0:02:25]} 11. Re1 {[%clk 0:02:54]}  Bg5 {[%clk 0:02:15]} 12. Nc3 {[%clk 0:02:54]}  Bxc1 {[%clk 0:02:12]} 13. Qxc1 {[%clk 0:02:55]}  Bd7 {[%clk 0:02:01]} 14. a4 {[%clk 0:02:54]}  a6 {[%clk 0:01:58]} 15. a5 {[%clk 0:02:48]}  Ne7 {[%clk 0:01:58]} 16. Ra3 {[%clk 0:02:45]}  Ng6 {[%clk 0:01:57]} 17. Rb3 {[%clk 0:02:44]}  Rb8 {[%clk 0:01:53]} 18. Ne4 {[%clk 0:02:39]}  h6 {[%clk 0:01:49]} 19. Rbe3 {[%clk 0:02:27]}  Re8 {[%clk 0:01:44]} 20. Qd2 {[%clk 0:02:19]}  f5 {[%clk 0:01:36]} 21. Nc3 {[%clk 0:02:04]}  Qf6 {[%clk 0:01:35]} 22. Rxe8+ {[%clk 0:01:36]}  Rxe8 {[%clk 0:01:35]} 23. Rxe8+ {[%clk 0:01:36]}  Bxe8 {[%clk 0:01:36]} 24. Qe3 {[%clk 0:01:36]}  Qd8 {[%clk 0:01:09]} 25. Bd3 {[%clk 0:01:32]}  Bd7 {[%clk 0:01:07]} 26. f4 {[%clk 0:01:30]}  Qe7 {[%clk 0:01:02]} 27. Qxe7 {[%clk 0:01:27]}  Nxe7 {[%clk 0:01:03]} 28. Kf2 {[%clk 0:01:26]}  Kf7 {[%clk 0:01:00]} 29. Ke3 {[%clk 0:01:26]}  Kf6 {[%clk 0:01:00]} 30. Kd4 {[%clk 0:01:22]}  g5 {[%clk 0:00:59]} 31. Ne2 {[%clk 0:01:20]}  Ng6 {[%clk 0:00:54]} 32. g3 {[%clk 0:01:18]}  Ne7 {[%clk 0:00:52]} 33. c4 {[%clk 0:01:17]}  c5+ {[%clk 0:00:41]} 34. Kc3 {[%clk 0:01:15]}  Be8 {[%clk 0:00:41]} 35. b4 {[%clk 0:01:14]}  cxb4+ {[%clk 0:00:40]} 36. Kxb4 {[%clk 0:01:14]}  Bh5 {[%clk 0:00:41]} 37. Nd4 {[%clk 0:01:09]}  gxf4 {[%clk 0:00:31]} 38. gxf4 {[%clk 0:01:09]}  Be8 {[%clk 0:00:26]} 39. Ne6 {[%clk 0:01:05]}  Bd7 {[%clk 0:00:24]} 40. Nd4 {[%clk 0:00:36]}  Ng6 {[%clk 0:00:23]} 41. Ne2 {[%clk 0:00:36]}  Ne7 {[%clk 0:00:21]} 42. Kc3 {[%clk 0:00:34]}  h5 {[%clk 0:00:19]} 43. Kd4 {[%clk 0:00:34]}  h4 {[%clk 0:00:19]} 44. c5 {[%clk 0:00:33]}  Nc8 {[%clk 0:00:17]} 45. h3 {[%clk 0:00:27]}  Ke7 {[%clk 0:00:17]} 46. Ng1 {[%clk 0:00:26]}  Bb5 {[%clk 0:00:15]} 47. Bxf5 {[%clk 0:00:22]}  dxc5+ {[%clk 0:00:14]} 48. Kxc5 {[%clk 0:00:22]}  Nd6 {[%clk 0:00:15]} 49. Be6 {[%clk 0:00:18]}  Nc4 {[%clk 0:00:16]} 50. f5 {[%clk 0:00:16]}  Nxa5 {[%clk 0:00:15]} 51. d6+ {[%clk 0:00:15]}  Kf6 {[%clk 0:00:16]} 52. Nf3 {[%clk 0:00:13]}  Nc6 {[%clk 0:00:15]} 53. Kb6 {[%clk 0:00:11]}  Nd8 {[%clk 0:00:15]} 54. d7 {[%clk 0:00:09]}  Ke7 {[%clk 0:00:14]} 55. Kc7 {[%clk 0:00:09]}  a5 {[%clk 0:00:14]} 56. Nd4 {[%clk 0:00:07]}  Ba4 {[%clk 0:00:13]} 57. f6+ {[%clk 0:00:07]}  Kxf6 {[%clk 0:00:14]} 58. Kxd8 {[%clk 0:00:08]}  Ke5 {[%clk 0:00:14]} 59. Nf3+ {[%clk 0:00:06]}  Kxe6 {[%clk 0:00:13]} 60. Ng5+ {[%clk 0:00:07]}  Kd6 {[%clk 0:00:13]} 61. Nf7+ {[%clk 0:00:06]}  Ke6 {[%clk 0:00:14]} 62. Ng5+ {[%clk 0:00:05]}  Kf5 {[%clk 0:00:14]} 63. Nf3 {[%clk 0:00:04]}  Kf6 {[%clk 0:00:10]} 64. Kc7 {[%clk 0:00:03]}  Bxd7 {[%clk 0:00:10]} 65. Kxd7 {[%clk 0:00:04]}  a4 {[%clk 0:00:11]} 66. Kd6 {[%clk 0:00:03]}  a3 {[%clk 0:00:11]} 67. Nd2 {[%clk 0:00:03]}  a2 {[%clk 0:00:12]} 68. Nb3 {[%clk 0:00:03]}  Kf5 {[%clk 0:00:13]} 69. Kd5 {[%clk 0:00:04]}  Kf4 {[%clk 0:00:14]} 70. Kd4 {[%clk 0:00:04]}  Kg3 {[%clk 0:00:14]} 71. Ke3 {[%clk 0:00:04]}  Kxh3 {[%clk 0:00:15]} 72. Kf3 {[%clk 0:00:05]}  b5 {[%clk 0:00:16]} 73. Na1 {[%clk 0:00:04]}  Kh2 {[%clk 0:00:16]} 74. Kf2 {[%clk 0:00:04]}  Kh3 {[%clk 0:00:17]} 75. Kf3 {[%clk 0:00:04]}  Kh2 {[%clk 0:00:17]} 76. Kf2 {[%clk 0:00:05]}  Kh1 {[%clk 0:00:18]} 77. Kf1 {[%clk 0:00:05]}  h3 {[%clk 0:00:18]} 78. Kf2 {[%clk 0:00:05]}  Kh2 {[%clk 0:00:19]} 79. Nb3 {[%clk 0:00:05]}  b4 {[%clk 0:00:20]} 80. Na1 {[%clk 0:00:05]}  Kh1 {[%clk 0:00:20]} 81. Nb3 {[%clk 0:00:06]}  Kh2 {[%clk 0:00:20]} 82. Na1 {[%clk 0:00:07]}  Kh1 {[%clk 0:00:18]} 83. Nb3 {[%clk 0:00:08]}  h2 {[%clk 0:00:19]} 84. Na1 {[%clk 0:00:09]}  b3 {[%clk 0:00:20]} 85. Nxb3 {[%clk 0:00:10]}  a1=Q {[%clk 0:00:21]} 86. Nxa1 {[%clk 0:00:10]} 1/2-1/2


[Site "https://www.chess.com"]

[Event "Titled Tuesday Blitz June 21 Early 2022"]
[White "Tanaka, Taira Tyler"]
[Black "Gabrielian, Artur"]
[WhiteFideId "7002351"]
[BlackFideId "4131002"]
[WhiteElo "2561"]
[BlackElo "2440"]
[Result "0-1"]
[Round "06"]
[TimeControl "180+1"]
[Date "2022.06.21"]
[WhiteClock "0:00:33"]
[BlackClock "0:01:36"]

1. Nf3 {[%clk 0:03:00]}  Nf6 {[%clk 0:02:59]} 2. g3 {[%clk 0:03:00]}  g6 {[%clk 0:02:59]} 3. b3 {[%clk 0:03:00]}  Bg7 {[%clk 0:02:59]} 4. Bb2 {[%clk 0:03:00]}  O-O {[%clk 0:02:59]} 5. Bg2 {[%clk 0:03:00]}  d6 {[%clk 0:02:59]} 6. d4 {[%clk 0:03:01]}  b5 {[%clk 0:03:00]} 7. O-O {[%clk 0:02:57]}  Bb7 {[%clk 0:02:59]} 8. Nbd2 {[%clk 0:02:52]}  Nbd7 {[%clk 0:02:58]} 9. Re1 {[%clk 0:02:52]}  c5 {[%clk 0:02:57]} 10. e4 {[%clk 0:02:48]}  cxd4 {[%clk 0:02:57]} 11. Nxd4 {[%clk 0:02:49]}  Qb6 {[%clk 0:02:53]} 12. Qe2 {[%clk 0:02:44]}  a6 {[%clk 0:02:49]} 13. a4 {[%clk 0:02:22]}  e5 {[%clk 0:02:36]} 14. N4f3 {[%clk 0:02:16]}  Rac8 {[%clk 0:02:33]} 15. axb5 {[%clk 0:01:56]}  axb5 {[%clk 0:02:33]} 16. c4 {[%clk 0:01:56]}  b4 {[%clk 0:02:17]} 17. Bh3 {[%clk 0:01:27]}  Ra8 {[%clk 0:02:14]} 18. Red1 {[%clk 0:01:23]}  Nc5 {[%clk 0:02:11]} 19. Bg2 {[%clk 0:01:05]}  Nfxe4 {[%clk 0:02:00]} 20. Nxe4 {[%clk 0:00:59]}  Bxe4 {[%clk 0:01:59]} 21. Rxa8 {[%clk 0:00:57]}  Rxa8 {[%clk 0:01:56]} 22. Ng5 {[%clk 0:00:57]}  Bxg2 {[%clk 0:01:52]} 23. Kxg2 {[%clk 0:00:58]}  Qc6+ {[%clk 0:01:42]} 24. Kg1 {[%clk 0:00:51]}  h6 {[%clk 0:01:40]} 25. Nf3 {[%clk 0:00:45]}  Ra2 {[%clk 0:01:37]} 26. Qc2 {[%clk 0:00:33]}  Qxf3 {[%clk 0:01:36]} 0-1


[Site "https://www.chess.com"]

[Event "Titled Tuesday Blitz June 21 Early 2022"]
[White "Tasev, Dejan"]
[Black "Samunenkov, Ihor"]
[WhiteFideId "936618"]
[BlackFideId "14187086"]
[WhiteElo "2532"]
[BlackElo "2701"]
[Result "1-0"]
[Round "06"]
[TimeControl "180+1"]
[Date "2022.06.21"]
[WhiteClock "0:00:23"]
[BlackClock "0:00:01"]

1. e4 {[%clk 0:03:00]}  c5 {[%clk 0:02:57]} 2. Nf3 {[%clk 0:03:00]}  Nc6 {[%clk 0:02:57]} 3. Nc3 {[%clk 0:03:00]}  g6 {[%clk 0:02:54]} 4. d4 {[%clk 0:03:00]}  cxd4 {[%clk 0:02:55]} 5. Nxd4 {[%clk 0:03:00]}  Bg7 {[%clk 0:02:56]} 6. Be3 {[%clk 0:03:00]}  Nf6 {[%clk 0:02:57]} 7. Bc4 {[%clk 0:03:00]}  O-O {[%clk 0:02:57]} 8. Bb3 {[%clk 0:03:01]}  Re8 {[%clk 0:02:58]} 9. f3 {[%clk 0:03:00]}  d5 {[%clk 0:02:56]} 10. exd5 {[%clk 0:02:55]}  Nb4 {[%clk 0:02:57]} 11. Nde2 {[%clk 0:02:53]}  e6 {[%clk 0:02:55]} 12. O-O {[%clk 0:02:19]}  Nbxd5 {[%clk 0:02:42]} 13. Nxd5 {[%clk 0:02:17]}  Nxd5 {[%clk 0:02:43]} 14. Bd4 {[%clk 0:02:14]}  Bh6 {[%clk 0:01:52]} 15. Bxd5 {[%clk 0:01:51]}  Qxd5 {[%clk 0:01:50]} 16. Nc3 {[%clk 0:01:43]}  Qc6 {[%clk 0:01:24]} 17. Qe2 {[%clk 0:01:26]}  e5 {[%clk 0:01:20]} 18. Be3 {[%clk 0:01:23]}  Bg7 {[%clk 0:01:20]} 19. Rad1 {[%clk 0:01:16]}  Be6 {[%clk 0:01:20]} 20. Rf2 {[%clk 0:01:11]}  f5 {[%clk 0:01:16]} 21. Qb5 {[%clk 0:01:02]}  Rec8 {[%clk 0:00:38]} 22. Qxc6 {[%clk 0:01:00]}  Rxc6 {[%clk 0:00:39]} 23. Rfd2 {[%clk 0:00:59]}  Rac8 {[%clk 0:00:23]} 24. a3 {[%clk 0:00:56]}  a6 {[%clk 0:00:21]} 25. Rd8+ {[%clk 0:00:54]}  Kf7 {[%clk 0:00:19]} 26. Rxc8 {[%clk 0:00:54]}  Rxc8 {[%clk 0:00:20]} 27. f4 {[%clk 0:00:50]}  exf4 {[%clk 0:00:19]} 28. Bd4 {[%clk 0:00:48]}  Rd8 {[%clk 0:00:12]} 29. Bxg7 {[%clk 0:00:46]}  Rxd1+ {[%clk 0:00:13]} 30. Nxd1 {[%clk 0:00:46]}  Kxg7 {[%clk 0:00:14]} 31. Kf2 {[%clk 0:00:44]}  Kf6 {[%clk 0:00:15]} 32. Nc3 {[%clk 0:00:45]}  Ke5 {[%clk 0:00:15]} 33. Ne2 {[%clk 0:00:44]}  Bd5 {[%clk 0:00:13]} 34. Nc3 {[%clk 0:00:44]}  Bc6 {[%clk 0:00:13]} 35. Nb1 {[%clk 0:00:43]}  g5 {[%clk 0:00:13]} 36. Nd2 {[%clk 0:00:43]}  g4 {[%clk 0:00:13]} 37. g3 {[%clk 0:00:39]}  fxg3+ {[%clk 0:00:08]} 38. hxg3 {[%clk 0:00:39]}  f4 {[%clk 0:00:08]} 39. Nc4+ {[%clk 0:00:37]}  Kf5 {[%clk 0:00:06]} 40. Nd6+ {[%clk 0:00:37]}  Ke6 {[%clk 0:00:05]} 41. Nc4 {[%clk 0:00:34]}  h5 {[%clk 0:00:03]} 42. gxf4 {[%clk 0:00:28]}  h4 {[%clk 0:00:04]} 43. Ne3 {[%clk 0:00:28]}  g3+ {[%clk 0:00:04]} 44. Kg1 {[%clk 0:00:24]}  h3 {[%clk 0:00:05]} 45. Nf1 {[%clk 0:00:23]}  h2+ {[%clk 0:00:04]} 46. Nxh2 {[%clk 0:00:24]}  gxh2+ {[%clk 0:00:05]} 47. Kxh2 {[%clk 0:00:25]}  Kf5 {[%clk 0:00:05]} 48. Kg3 {[%clk 0:00:25]}  Be4 {[%clk 0:00:06]} 49. c3 {[%clk 0:00:25]}  Bd5 {[%clk 0:00:04]} 50. a4 {[%clk 0:00:24]}  a5 {[%clk 0:00:05]} 51. b4 {[%clk 0:00:24]}  axb4 {[%clk 0:00:02]} 52. cxb4 {[%clk 0:00:24]}  Bb3 {[%clk 0:00:03]} 53. a5 {[%clk 0:00:23]}  Bc4 {[%clk 0:00:03]} 54. Kf3 {[%clk 0:00:23]}  Bb5 {[%clk 0:00:02]} 55. Ke3 {[%clk 0:00:23]}  Bf1 {[%clk 0:00:01]} 56. Kd4 {[%clk 0:00:22]}  Kxf4 {[%clk 0:00:01]} 57. Kc5 {[%clk 0:00:23]}  Ke5 {[%clk 0:00:01]} 58. Kb6 {[%clk 0:00:23]} 1-0


[Site "https://www.chess.com"]

[Event "Titled Tuesday Blitz June 21 Early 2022"]
[White "Timofeev, Artyom"]
[Black "Grischuk, Alexander"]
[WhiteFideId "4140419"]
[BlackFideId "4126025"]
[WhiteElo "2578"]
[BlackElo "2762"]
[Result "1/2-1/2"]
[Round "06"]
[TimeControl "180+1"]
[Date "2022.06.21"]
[WhiteClock "0:00:06"]
[BlackClock "0:00:05"]

1. e4 {[%clk 0:03:00]}  e6 {[%clk 0:03:00]} 2. Qe2 {[%clk 0:02:57]}  c5 {[%clk 0:03:00]} 3. Nf3 {[%clk 0:02:57]}  Nc6 {[%clk 0:03:00]} 4. g3 {[%clk 0:02:56]}  g6 {[%clk 0:03:00]} 5. Bg2 {[%clk 0:02:56]}  Bg7 {[%clk 0:03:01]} 6. O-O {[%clk 0:02:56]}  d6 {[%clk 0:02:59]} 7. c3 {[%clk 0:02:56]}  e5 {[%clk 0:02:56]} 8. Na3 {[%clk 0:02:53]}  Nge7 {[%clk 0:02:56]} 9. Nc4 {[%clk 0:02:52]}  O-O {[%clk 0:02:55]} 10. a4 {[%clk 0:02:51]}  h6 {[%clk 0:02:53]} 11. d3 {[%clk 0:02:38]}  Be6 {[%clk 0:02:52]} 12. Bd2 {[%clk 0:02:34]}  a5 {[%clk 0:02:16]} 13. Rae1 {[%clk 0:02:14]}  f5 {[%clk 0:02:12]} 14. exf5 {[%clk 0:02:13]}  Nxf5 {[%clk 0:02:12]} 15. h3 {[%clk 0:02:08]}  Kh8 {[%clk 0:02:10]} 16. Nh2 {[%clk 0:02:00]}  Bg8 {[%clk 0:02:08]} 17. Ng4 {[%clk 0:01:53]}  Qc7 {[%clk 0:02:02]} 18. Nce3 {[%clk 0:01:52]}  Nfe7 {[%clk 0:02:00]} 19. Nc4 {[%clk 0:01:50]}  Nf5 {[%clk 0:01:59]} 20. Nce3 {[%clk 0:01:49]}  Nfe7 {[%clk 0:01:50]} 21. Nc4 {[%clk 0:01:49]}  h5 {[%clk 0:01:40]} 22. Nh2 {[%clk 0:01:47]}  Rae8 {[%clk 0:01:37]} 23. Nf3 {[%clk 0:01:46]}  Nf5 {[%clk 0:01:35]} 24. Ng5 {[%clk 0:01:45]}  Qd8 {[%clk 0:01:30]} 25. h4 {[%clk 0:01:43]}  d5 {[%clk 0:01:25]} 26. Ne3 {[%clk 0:01:43]}  Nh6 {[%clk 0:01:24]} 27. Qd1 {[%clk 0:01:38]}  Qd6 {[%clk 0:01:15]} 28. Qb3 {[%clk 0:01:35]}  Rd8 {[%clk 0:00:57]} 29. Qb6 {[%clk 0:01:28]}  Ng4 {[%clk 0:00:32]} 30. Nxg4 {[%clk 0:01:26]}  hxg4 {[%clk 0:00:33]} 31. Be3 {[%clk 0:01:19]}  d4 {[%clk 0:00:33]} 32. Bc1 {[%clk 0:01:15]}  dxc3 {[%clk 0:00:23]} 33. bxc3 {[%clk 0:01:15]}  Qxd3 {[%clk 0:00:23]} 34. Qxb7 {[%clk 0:01:14]}  Nb8 {[%clk 0:00:20]} 35. Be4 {[%clk 0:00:59]}  Qd6 {[%clk 0:00:18]} 36. Qb1 {[%clk 0:00:58]}  Nd7 {[%clk 0:00:12]} 37. Bxg6 {[%clk 0:00:57]}  Rb8 {[%clk 0:00:12]} 38. Qd3 {[%clk 0:00:51]}  Qxd3 {[%clk 0:00:12]} 39. Bxd3 {[%clk 0:00:51]}  c4 {[%clk 0:00:12]} 40. Bc2 {[%clk 0:00:38]}  Rfd8 {[%clk 0:00:09]} 41. Ba3 {[%clk 0:00:36]}  Nb6 {[%clk 0:00:09]} 42. Ne4 {[%clk 0:00:23]}  Nd5 {[%clk 0:00:08]} 43. Rd1 {[%clk 0:00:22]}  Bh7 {[%clk 0:00:08]} 44. Kg2 {[%clk 0:00:16]}  Nxc3 {[%clk 0:00:08]} 45. Nxc3 {[%clk 0:00:16]}  Bxc2 {[%clk 0:00:07]} 46. Rxd8+ {[%clk 0:00:16]}  Rxd8 {[%clk 0:00:08]} 47. Rc1 {[%clk 0:00:17]}  Bd3 {[%clk 0:00:08]} 48. Bc5 {[%clk 0:00:16]}  e4 {[%clk 0:00:08]} 49. Bb6 {[%clk 0:00:16]}  Rb8 {[%clk 0:00:04]} 50. Bxa5 {[%clk 0:00:16]}  e3 {[%clk 0:00:04]} 51. fxe3 {[%clk 0:00:15]}  Rb2+ {[%clk 0:00:05]} 52. Kg1 {[%clk 0:00:15]}  Be5 {[%clk 0:00:05]} 53. Nd1 {[%clk 0:00:10]}  Ra2 {[%clk 0:00:03]} 54. Bc3 {[%clk 0:00:10]}  Bxc3 {[%clk 0:00:03]} 55. Nxc3 {[%clk 0:00:10]}  Ra3 {[%clk 0:00:04]} 56. e4 {[%clk 0:00:10]}  Kg7 {[%clk 0:00:04]} 57. Kf2 {[%clk 0:00:10]}  Kf6 {[%clk 0:00:04]} 58. Ke3 {[%clk 0:00:11]}  Ke5 {[%clk 0:00:05]} 59. Kd2 {[%clk 0:00:11]}  Rb3 {[%clk 0:00:04]} 60. Ra1 {[%clk 0:00:07]}  Kd4 {[%clk 0:00:04]} 61. Nb5+ {[%clk 0:00:07]}  Kxe4 {[%clk 0:00:04]} 62. Nc3+ {[%clk 0:00:07]}  Kd4 {[%clk 0:00:04]} 63. Nb5+ {[%clk 0:00:07]}  Ke4 {[%clk 0:00:04]} 64. Nc3+ {[%clk 0:00:07]}  Kf3 {[%clk 0:00:04]} 65. a5 {[%clk 0:00:07]}  Rb2+ {[%clk 0:00:04]} 66. Kd1 {[%clk 0:00:08]}  Rh2 {[%clk 0:00:01]} 67. Ra3 {[%clk 0:00:05]}  Ke3 {[%clk 0:00:01]} 68. Kc1 {[%clk 0:00:04]}  Kd4 {[%clk 0:00:02]} 69. a6 {[%clk 0:00:02]}  Rc2+ {[%clk 0:00:02]} 70. Kd1 {[%clk 0:00:02]}  Rxc3 {[%clk 0:00:02]} 71. Rxc3 {[%clk 0:00:01]}  Kxc3 {[%clk 0:00:03]} 72. a7 {[%clk 0:00:02]}  Be4 {[%clk 0:00:03]} 73. Kc1 {[%clk 0:00:02]}  Kd4 {[%clk 0:00:04]} 74. h5 {[%clk 0:00:03]}  Ke5 {[%clk 0:00:04]} 75. h6 {[%clk 0:00:03]}  Kf6 {[%clk 0:00:05]} 76. Kd2 {[%clk 0:00:03]}  Kg6 {[%clk 0:00:05]} 77. Kc3 {[%clk 0:00:04]}  Kxh6 {[%clk 0:00:04]} 78. Kxc4 {[%clk 0:00:04]}  Kg5 {[%clk 0:00:04]} 79. Kd4 {[%clk 0:00:04]}  Ba8 {[%clk 0:00:04]} 80. Ke5 {[%clk 0:00:05]}  Bb7 {[%clk 0:00:05]} 81. Ke6 {[%clk 0:00:04]}  Ba8 {[%clk 0:00:05]} 82. Ke5 {[%clk 0:00:04]}  Bf3 {[%clk 0:00:05]} 83. Ke6 {[%clk 0:00:04]}  Kg6 {[%clk 0:00:05]} 84. Ke5 {[%clk 0:00:04]}  Kg5 {[%clk 0:00:04]} 85. Ke6 {[%clk 0:00:05]}  Bb7 {[%clk 0:00:04]} 86. Ke5 {[%clk 0:00:05]}  Ba8 {[%clk 0:00:05]} 87. Ke6 {[%clk 0:00:05]}  Bb7 {[%clk 0:00:05]} 88. Ke5 {[%clk 0:00:06]}  Bc6 {[%clk 0:00:05]} 89. Ke6 {[%clk 0:00:06]}  Ba8 {[%clk 0:00:05]} 90. Ke5 {[%clk 0:00:06]} 1/2-1/2


[Site "https://www.chess.com"]

[Event "Titled Tuesday Blitz June 21 Early 2022"]
[White "Tinmaz, Kerem"]
[Black "Manukian, Artak"]
[WhiteFideId "44559151"]
[BlackFideId "13301373"]
[WhiteElo "1443"]
[BlackElo "2466"]
[Result "0-1"]
[Round "06"]
[TimeControl "180+1"]
[Date "2022.06.21"]
[WhiteClock "0:00:02"]
[BlackClock "0:00:18"]

1. e4 {[%clk 0:02:59]}  c6 {[%clk 0:01:52]} 2. d4 {[%clk 0:02:59]}  d5 {[%clk 0:01:52]} 3. Nd2 {[%clk 0:02:59]}  dxe4 {[%clk 0:01:52]} 4. Nxe4 {[%clk 0:02:59]}  Nf6 {[%clk 0:01:53]} 5. Nxf6+ {[%clk 0:02:59]}  exf6 {[%clk 0:01:53]} 6. c3 {[%clk 0:03:00]}  Bd6 {[%clk 0:01:53]} 7. Bd3 {[%clk 0:03:00]}  Na6 {[%clk 0:01:52]} 8. Qc2 {[%clk 0:02:58]}  Nc7 {[%clk 0:01:50]} 9. Ne2 {[%clk 0:02:53]}  Nd5 {[%clk 0:01:46]} 10. Bd2 {[%clk 0:02:29]}  b5 {[%clk 0:01:42]} 11. b3 {[%clk 0:02:08]}  a5 {[%clk 0:01:32]} 12. O-O {[%clk 0:02:06]}  h5 {[%clk 0:01:27]} 13. c4 {[%clk 0:01:56]}  Nb4 {[%clk 0:01:24]} 14. Bxb4 {[%clk 0:01:54]}  axb4 {[%clk 0:01:24]} 15. cxb5 {[%clk 0:01:49]}  cxb5 {[%clk 0:01:24]} 16. Bxb5+ {[%clk 0:01:49]}  Kf8 {[%clk 0:01:24]} 17. Qc6 {[%clk 0:01:28]}  Rb8 {[%clk 0:01:21]} 18. Ng3 {[%clk 0:01:09]}  h4 {[%clk 0:00:56]} 19. Ne4 {[%clk 0:01:07]}  Be7 {[%clk 0:00:57]} 20. Nc5 {[%clk 0:00:33]}  h3 {[%clk 0:00:53]} 21. d5 {[%clk 0:00:15]}  hxg2 {[%clk 0:00:44]} 22. Rfe1 {[%clk 0:00:15]}  g5 {[%clk 0:00:37]} 23. d6 {[%clk 0:00:14]}  Qxd6 {[%clk 0:00:33]} 24. Qxd6 {[%clk 0:00:05]}  Bxd6 {[%clk 0:00:34]} 25. Ne4 {[%clk 0:00:04]}  Bxh2+ {[%clk 0:00:27]} 26. Kxg2 {[%clk 0:00:05]}  Rxb5 {[%clk 0:00:25]} 27. Rh1 {[%clk 0:00:04]}  Bb7 {[%clk 0:00:24]} 28. f3 {[%clk 0:00:04]}  g4 {[%clk 0:00:19]} 29. Raf1 {[%clk 0:00:01]}  gxf3+ {[%clk 0:00:18]} 30. Kxf3 {[%clk 0:00:02]}  f5 {[%clk 0:00:18]} 0-1


[Site "https://www.chess.com"]

[Event "Titled Tuesday Blitz June 21 Early 2022"]
[White "Tologon tegin, Semetei"]
[Black "Costachi, Mihnea"]
[WhiteFideId "13800574"]
[BlackFideId "1217518"]
[WhiteElo "2174"]
[BlackElo "2476"]
[Result "0-1"]
[Round "06"]
[TimeControl "180+1"]
[Date "2022.06.21"]
[WhiteClock "0:00:09"]
[BlackClock "0:01:10"]

1. e4 {[%clk 0:02:36]}  e5 {[%clk 0:02:59]} 2. Nf3 {[%clk 0:02:35]}  Nc6 {[%clk 0:03:00]} 3. Bc4 {[%clk 0:02:34]}  Bc5 {[%clk 0:02:59]} 4. O-O {[%clk 0:02:34]}  d6 {[%clk 0:02:59]} 5. d3 {[%clk 0:02:34]}  Nf6 {[%clk 0:02:59]} 6. c3 {[%clk 0:02:34]}  h6 {[%clk 0:02:59]} 7. h3 {[%clk 0:02:33]}  a6 {[%clk 0:02:58]} 8. a4 {[%clk 0:02:33]}  Ba7 {[%clk 0:02:54]} 9. Re1 {[%clk 0:02:33]}  O-O {[%clk 0:02:54]} 10. Nbd2 {[%clk 0:02:32]}  Nh5 {[%clk 0:02:55]} 11. Nf1 {[%clk 0:02:32]}  Qf6 {[%clk 0:02:54]} 12. Be3 {[%clk 0:02:31]}  Nf4 {[%clk 0:02:51]} 13. Ng3 {[%clk 0:02:23]}  g5 {[%clk 0:02:46]} 14. d4 {[%clk 0:02:15]}  Ne7 {[%clk 0:02:28]} 15. dxe5 {[%clk 0:02:02]}  dxe5 {[%clk 0:02:28]} 16. Bxa7 {[%clk 0:02:01]}  Rxa7 {[%clk 0:02:28]} 17. Nh2 {[%clk 0:01:54]}  Ra8 {[%clk 0:02:21]} 18. Nh5 {[%clk 0:01:53]}  Qg6 {[%clk 0:02:16]} 19. Nxf4 {[%clk 0:01:52]}  gxf4 {[%clk 0:02:16]} 20. Kh1 {[%clk 0:01:45]}  Kh8 {[%clk 0:02:14]} 21. Nf3 {[%clk 0:01:35]}  Rg8 {[%clk 0:02:12]} 22. Rg1 {[%clk 0:01:35]}  Nc6 {[%clk 0:02:09]} 23. Bd5 {[%clk 0:01:34]}  Qf6 {[%clk 0:02:06]} 24. Qb3 {[%clk 0:01:24]}  Na5 {[%clk 0:01:57]} 25. Qb4 {[%clk 0:01:22]}  Nc6 {[%clk 0:01:58]} 26. Qc4 {[%clk 0:01:21]}  Be6 {[%clk 0:01:52]} 27. Rad1 {[%clk 0:01:17]}  Rg6 {[%clk 0:01:46]} 28. Qc5 {[%clk 0:01:14]}  Rag8 {[%clk 0:01:44]} 29. Bxc6 {[%clk 0:01:11]}  bxc6 {[%clk 0:01:43]} 30. Qxc6 {[%clk 0:01:12]}  Qg7 {[%clk 0:01:34]} 31. Qc5 {[%clk 0:01:03]}  f6 {[%clk 0:01:30]} 32. Nh4 {[%clk 0:00:51]}  Rg5 {[%clk 0:01:23]} 33. f3 {[%clk 0:00:27]}  Rg3 {[%clk 0:01:12]} 34. Nf5 {[%clk 0:00:25]}  Bxf5 {[%clk 0:01:10]} 35. exf5 {[%clk 0:00:25]}  Rxg2 {[%clk 0:01:11]} 36. a5 {[%clk 0:00:09]}  Qg3 {[%clk 0:01:10]} 0-1


[Site "https://www.chess.com"]

[Event "Titled Tuesday Blitz June 21 Early 2022"]
[White "Tregubov, Pavel V."]
[Black "Pham, Le Thao Nguyen"]
[WhiteFideId "4115341"]
[BlackFideId "12401226"]
[WhiteElo "2341"]
[BlackElo "2282"]
[Result "1/2-1/2"]
[Round "06"]
[TimeControl "180+1"]
[Date "2022.06.21"]
[WhiteClock "0:00:26"]
[BlackClock "0:00:15"]

1. e4 {[%clk 0:03:00]}  c5 {[%clk 0:02:59]} 2. Nf3 {[%clk 0:03:00]}  e6 {[%clk 0:03:00]} 3. c3 {[%clk 0:02:59]}  d5 {[%clk 0:02:59]} 4. exd5 {[%clk 0:02:58]}  Qxd5 {[%clk 0:02:59]} 5. d4 {[%clk 0:02:59]}  Nc6 {[%clk 0:02:59]} 6. Be2 {[%clk 0:02:57]}  Nf6 {[%clk 0:03:00]} 7. O-O {[%clk 0:02:58]}  cxd4 {[%clk 0:03:00]} 8. cxd4 {[%clk 0:02:58]}  Be7 {[%clk 0:03:00]} 9. Nc3 {[%clk 0:02:58]}  Qd8 {[%clk 0:03:01]} 10. Be3 {[%clk 0:02:56]}  O-O {[%clk 0:03:01]} 11. Ne5 {[%clk 0:02:57]}  Nb4 {[%clk 0:02:49]} 12. Bf3 {[%clk 0:02:53]}  Nbd5 {[%clk 0:02:48]} 13. Qb3 {[%clk 0:02:53]}  Bd6 {[%clk 0:02:21]} 14. Rad1 {[%clk 0:02:25]}  Rb8 {[%clk 0:02:06]} 15. Bg5 {[%clk 0:02:08]}  Qa5 {[%clk 0:01:51]} 16. Nc4 {[%clk 0:01:59]}  Qc7 {[%clk 0:01:47]} 17. Nxd6 {[%clk 0:01:56]}  Qxd6 {[%clk 0:01:48]} 18. Rfe1 {[%clk 0:01:47]}  Bd7 {[%clk 0:01:46]} 19. Nxd5 {[%clk 0:01:44]}  Nxd5 {[%clk 0:01:45]} 20. Bxd5 {[%clk 0:01:40]}  Qxd5 {[%clk 0:01:34]} 21. Qxd5 {[%clk 0:01:39]}  exd5 {[%clk 0:01:35]} 22. Re7 {[%clk 0:01:39]}  Bc6 {[%clk 0:01:31]} 23. f3 {[%clk 0:01:23]}  Rfe8 {[%clk 0:01:24]} 24. Kf2 {[%clk 0:01:20]}  f6 {[%clk 0:01:20]} 25. Rxe8+ {[%clk 0:01:20]}  Rxe8 {[%clk 0:01:21]} 26. Bf4 {[%clk 0:01:18]}  Kf7 {[%clk 0:01:19]} 27. g4 {[%clk 0:01:17]}  h5 {[%clk 0:00:48]} 28. h3 {[%clk 0:01:08]}  g5 {[%clk 0:00:25]} 29. Bd6 {[%clk 0:01:08]}  hxg4 {[%clk 0:00:20]} 30. hxg4 {[%clk 0:01:07]}  Kg6 {[%clk 0:00:20]} 31. b3 {[%clk 0:01:03]}  a6 {[%clk 0:00:20]} 32. a4 {[%clk 0:01:01]}  Re6 {[%clk 0:00:19]} 33. Bc5 {[%clk 0:01:00]}  Re8 {[%clk 0:00:19]} 34. Rh1 {[%clk 0:00:57]}  Kg7 {[%clk 0:00:17]} 35. Rc1 {[%clk 0:00:52]}  Rh8 {[%clk 0:00:17]} 36. Bd6 {[%clk 0:00:51]}  Re8 {[%clk 0:00:16]} 37. a5 {[%clk 0:00:33]}  Re6 {[%clk 0:00:16]} 38. Bg3 {[%clk 0:00:32]}  Re8 {[%clk 0:00:16]} 39. Rc5 {[%clk 0:00:31]}  Re6 {[%clk 0:00:16]} 40. b4 {[%clk 0:00:31]}  Re7 {[%clk 0:00:16]} 41. Rc2 {[%clk 0:00:26]}  Kg6 {[%clk 0:00:15]} 1/2-1/2


[Site "https://www.chess.com"]